fUST/lending_fUST_20250910
["ID","MTS","AMOUNT","RATE_DAILY","PERIOD"]
[384598835,1757469065783,-296.94673208,0.00020528,2]
[384598836,1757469065792,-297.87024134,0.00020528,2]
[384598837,1757469065801,-158.59865328,0.00020528,2]
[384598838,1757469065810,-157.37923857,0.00020528,2]
[384598839,1757469065820,-157.0,0.00020528,2]
[384598840,1757469065830,-500.0,0.00020528,2]
[384598841,1757469065839,-267.5,0.00020528,2]
[384598842,1757469065849,-500.0,0.00020528,2]
[384598843,1757469065859,-157.0,0.00020528,2]
[384598844,1757469065869,-503.0,0.00020528,2]
[384598845,1757469065878,-500.0,0.00020528,2]
[384598846,1757469065887,-1260.0,0.00020719,2]
[384598847,1757469065897,-16183.88491777,0.00020755,2]
[384598848,1757469065907,-152.74223674,0.0002079,2]
[384598849,1757469065920,-152.64339822,0.0002079,2]
[384598850,1757469065935,-507.06245769,0.0002079,2]
[384598851,1757469065944,-154.92832574,0.0002079,2]
[384598852,1757469065955,-18603.8837,0.0002079,2]
[384598853,1757469065966,-253.53163829,0.0002079,2]
[384598854,1757469065976,-162.380719,0.0002079,2]
[384598855,1757469065986,-151.09804211,0.0002079,2]
[384598856,1757469065998,-500.0,0.0002079,2]
[384598857,1757469066008,-517.06657677,0.0002079,2]
[384598858,1757469066019,-151.17486119,0.0002079,2]
[384598859,1757469066030,-157.0,0.00020802,2]
[384598860,1757469066042,-157.0,0.00020802,2]
[384598861,1757469066054,-466.72864953,0.00020802,2]
[384598862,1757469066166,-316.67740856,0.00020802,2]
[384598863,1757469066175,-281.30811156,0.00020802,2]
[384598864,1757469066185,-503.0,0.00020802,2]
[384598865,1757469066195,-500.0,0.00020802,2]
[384598866,1757469066204,-163.51294162,0.00020932,2]
[384598867,1757469066214,-295.82029255,0.00021076,2]
[384598868,1757469066225,-261.93555451,0.00021076,2]
[384598869,1757469066234,-503.0,0.00021076,2]
[384598870,1757469066243,-500.0,0.00021076,2]
[384598871,1757469066253,-3000.0,0.00021164,2]
[384598872,1757469066262,-16183.88491777,0.00021182,2]
[384598873,1757469066272,-1613.0,0.00021211,2]
[384598874,1757469066281,-1102.47984193,0.00021267,2]
[384598875,1757469066291,-14812.36988539,0.00021338,2]
[384598876,1757469066300,-503.0,0.0002135,2]
[384598877,1757469066309,-500.0,0.0002135,2]
[384598878,1757469066318,-6047.50489587,0.00021542,2]
[384598879,1757469066327,-16183.88491777,0.0002161,2]
[384598880,1757469066336,-151.0,0.0002161,2]
[384598881,1757469066346,-154.839679,0.0002161,2]
[384598882,1757469066355,-154.839679,0.0002161,2]
[384598883,1757469066364,-154.839679,0.0002161,2]
[384598884,1757469066373,-154.839684,0.0002161,2]
[384598885,1757469066382,-300.123743,0.0002161,2]
[384598886,1757469066392,-300.123743,0.0002161,2]
[384598887,1757469066401,-300.123743,0.0002161,2]
[384598888,1757469066411,-300.123744,0.0002161,2]
[384598889,1757469066421,-503.0,0.00021624,2]
[384598890,1757469066431,-500.0,0.00021624,2]
[384598891,1757469066440,-4000.0,0.00021667,4]
[384598892,1757469066450,-10963.37532302,0.00021818,2]
[384598893,1757469066459,-503.0,0.00021898,2]
[384598894,1757469066469,-188.00767927,0.00021898,2]
[384598895,1757469066478,-2000.0,0.000219,2]
[384598896,1757469066488,-2000.0,0.000219,2]
[384598897,1757469066497,-250.0,0.000219,10]
[384598898,1757469066507,-153.0,0.00021918,2]
[384598899,1757469066516,-153.0,0.00021918,2]
[384598900,1757469066526,-153.0,0.00021918,2]
[384598901,1757469066536,-153.0,0.00021918,2]
[384598902,1757469066545,-153.0,0.00021918,2]
[384598903,1757469066555,-153.0,0.00021918,2]
[384598904,1757469066565,-153.0,0.00021918,2]
[384598905,1757469066574,-153.0,0.00021918,2]
[384598906,1757469066583,-153.0,0.00021918,2]
[384598907,1757469066592,-153.0,0.00021918,2]
[384598908,1757469066602,-153.0,0.00021918,2]
[384598909,1757469066611,-153.0,0.00021918,2]
[384598910,1757469066620,-153.0,0.00021918,2]
[384598911,1757469066630,-153.0,0.00021918,2]
[384598912,1757469066639,-153.0,0.00021918,2]
[384598913,1757469066649,-1000.0,0.00021918,2]
[384598914,1757469066659,-1000.0,0.00021918,2]
[384598915,1757469066668,-1000.0,0.00021918,2]
[384598916,1757469066677,-1000.0,0.00021918,2]
[384598917,1757469066687,-1000.0,0.00021918,2]
[384598918,1757469066698,-1000.0,0.00021918,2]
[384598919,1757469066708,-1000.0,0.00021918,2]
[384598920,1757469066716,-1000.0,0.00021918,2]
[384598921,1757469066725,-1000.0,0.00021918,2]
[384598922,1757469066735,-1000.0,0.00021918,2]
[384598923,1757469066744,-1000.0,0.00021918,2]
[384598924,1757469066753,-1000.0,0.00021918,2]
[384598925,1757469066763,-1000.0,0.00021918,2]
[384598926,1757469066774,-1000.0,0.00021918,2]
[384598927,1757469066784,-1000.0,0.00021918,2]
[384598928,1757469066794,-1000.0,0.00021918,2]
[384598929,1757469066804,-1000.0,0.00021918,2]
[384598930,1757469066813,-1000.0,0.00021918,2]
[384598931,1757469066823,-1000.0,0.00021918,2]
[384598932,1757469066833,-1000.0,0.00021918,2]
[384598933,1757469066843,-1000.0,0.00021918,2]
[384598934,1757469066854,-1000.0,0.00021918,2]
[384598935,1757469066865,-1000.0,0.00021918,2]
[384598936,1757469066875,-1000.0,0.00021918,2]
[384598937,1757469066885,-1000.0,0.00021918,2]
[384598938,1757469066895,-1000.0,0.00021918,2]
[384598939,1757469066905,-1000.0,0.00021918,2]
[384598940,1757469066917,-1000.0,0.00021918,2]
[384598941,1757469066928,-1000.0,0.00021918,2]
[384598942,1757469066938,-1000.0,0.00021918,2]
[384598943,1757469066948,-1000.0,0.00021918,2]
[384598944,1757469066958,-1000.0,0.00021918,2]
[384598945,1757469066967,-1000.0,0.00021918,2]
[384598946,1757469066977,-1000.0,0.00021918,2]
[384598947,1757469066986,-1000.0,0.00021918,2]
[384598948,1757469066996,-1000.0,0.00021918,2]
[384598949,1757469067006,-1000.0,0.00021918,2]
[384598950,1757469067016,-1000.0,0.00021918,2]
[384598951,1757469067027,-1000.0,0.00021918,2]
[384598952,1757469067036,-1000.0,0.00021918,2]
[384598953,1757469067047,-1000.0,0.00021918,2]
[384598954,1757469067056,-1000.0,0.00021918,2]
[384598955,1757469067066,-1000.0,0.00021918,2]
[384598956,1757469067076,-1000.0,0.00021918,2]
[384598957,1757469067087,-1000.0,0.00021918,2]
[384598958,1757469067097,-1000.0,0.00021918,2]
[384598959,1757469067106,-1000.0,0.00021918,2]
[384598960,1757469067118,-1000.0,0.00021918,2]
[384598961,1757469067130,-1000.0,0.00021918,2]
[384598962,1757469067140,-1000.0,0.00021918,2]
[384598963,1757469067151,-1009.141845,0.00021918,2]
[384598964,1757469067160,-1658.295599,0.00021918,2]
[384598965,1757469067170,-1658.295599,0.00021918,2]
[384598966,1757469067180,-1658.295599,0.00021918,2]
[384598967,1757469067190,-1658.295599,0.00021918,2]
[384598968,1757469067201,-1658.295599,0.00021918,2]
[384598969,1757469067211,-1658.295599,0.00021918,2]
[384598970,1757469067222,-1658.295599,0.00021918,2]
[384598971,1757469067232,-1658.295599,0.00021918,2]
[384598972,1757469067243,-1658.295599,0.00021918,2]
[384598973,1757469067253,-1658.295599,0.00021918,2]
[384598974,1757469067264,-1658.295599,0.00021918,2]
[384598975,1757469067274,-1658.295599,0.00021918,2]
[384598976,1757469067284,-1658.295599,0.00021918,2]
[384598977,1757469067294,-1658.295599,0.00021918,2]
[384598978,1757469067304,-1658.295599,0.00021918,2]
[384598979,1757469067314,-1658.295599,0.00021918,2]
[384598980,1757469067324,-411.806033,0.00021918,2]
[384598981,1757469067335,-318.60189,0.00021918,2]
[384598982,1757469067344,-318.60189,0.00021918,2]
[384598983,1757469067355,-318.60189,0.00021918,2]
[384598984,1757469067365,-318.60189,0.00021918,2]
[384598985,1757469067375,-318.60189,0.00021918,2]
[384598986,1757469067385,-318.60189,0.00021918,2]
[384598987,1757469067395,-318.60189,0.00021918,2]
[384598988,1757469067405,-318.60189,0.00021918,2]
[384598989,1757469067415,-318.60189,0.00021918,2]
[384598990,1757469067425,-318.60189,0.00021918,2]
[384598991,1757469067435,-318.60189,0.00021918,2]
[384598992,1757469067446,-318.60189,0.00021918,2]
[384598993,1757469067455,-318.60189,0.00021918,2]
[384598994,1757469067465,-318.60189,0.00021918,2]
[384598995,1757469067475,-318.60189,0.00021918,2]
[384598996,1757469067484,-318.60189,0.00021918,2]
[384598997,1757469067493,-150.0,0.00021918,2]
[384598998,1757469067504,-151.0,0.00021918,7]
[384598999,1757469067515,-1658.295599,0.00021918,7]
[384599000,1757469067525,-1658.295599,0.00021918,7]
[384599001,1757469067535,-1658.295599,0.00021918,7]
[384599002,1757469067544,-1658.29560696,0.00021918,7]
[384599003,1757469067555,-191.628134,0.00021918,7]
[384599004,1757469067565,-191.628134,0.00021918,7]
[384599005,1757469067575,-191.628134,0.00021918,7]
[384599006,1757469067586,-191.628144,0.00021918,7]
[384599007,1757469067595,-151.0,0.00021918,7]
[384599008,1757469067605,-151.0,0.00021918,7]
[384599009,1757469067614,-318.60189,0.00021918,7]
[384599010,1757469067624,-318.60189,0.00021918,7]
[384599011,1757469067633,-318.60189,0.00021918,7]
[384599012,1757469067643,-318.60188,0.00021918,7]
[384599013,1757469067652,-151.0,0.00021918,7]
[384599014,1757469067661,-7092.41,0.00022,7]
[384599015,1757469067670,-54.94934176,0.00022,7]
[384599016,1757469067805,-609.09,0.00022,7]
[384599017,1757469068051,-26.1343128,0.00022,7]
[384599018,1757469068150,-487.09206768,0.00015616,2]
[384599019,1757469068159,-480.0,0.00016438,2]
[384599020,1757469068168,-480.0,0.00016712,2]
[384599021,1757469068178,-480.0,0.00016986,2]
[384599022,1757469068187,-629.26733502,0.0001726,2]
[384599023,1757469068196,-2453.36634544,0.00022,7]
[384599024,1757469068206,-5534.7,0.00022,7]
[384599025,1757469068215,-6903.82982674,0.00022,7]
[384599026,1757469068226,-1242.75935212,0.00022,7]
[384599027,1757469068271,-22.30915772,0.00022,7]
[384599028,1757469068336,-48.22748204,0.00013561,2]
[384599035,1757469237415,300.0,0.00013263,2]
[384599038,1757469263309,1295.95297371,0.00013264,2]
[384599039,1757469263331,1742.34996183,0.00013264,2]
[384599043,1757469314079,151.0,0.000122,2]
[384599044,1757469314380,151.0,0.00011,2]
[384599048,1757469474979,200.0,0.00027397,120]
[384599050,1757469567334,172.35843111,0.000132,2]
[384599054,1757469850518,288.15465525,0.00012995,2]
[384599056,1757469901401,495.8554696,0.00027397,120]
[384599068,1757470161160,-172.3584311,0.00013297,2]
[384599069,1757470161180,-983.75097609,0.00013297,2]
[384599070,1757470161201,-2910.63242182,0.000133,2]
[384599071,1757470161221,-300.0,0.00013371,2]
[384599072,1757470161241,-300.0,0.00013372,2]
[384599073,1757470161263,-300.0,0.00013372,2]
[384599074,1757470161283,-300.0,0.00013372,2]
[384599075,1757470161308,-1200.0,0.00013372,2]
[384599076,1757470161328,-500.0,0.00013373,2]
[384599077,1757470161349,-507.6012751,0.00013373,2]
[384599078,1757470161369,-500.0,0.00013373,2]
[384599079,1757470161388,-500.0,0.00013373,2]
[384599080,1757470161408,-500.0,0.00013373,2]
[384599081,1757470161429,-278.29333172,0.00013373,2]
[384599082,1757470161450,-28965.49828131,0.00013373,2]
[384599083,1757470164079,-1428.1813138,0.00013373,2]
[384599108,1757470232306,-467.24433419,0.000133,2]
[384599718,1757470238401,-1861.26160325,0.000133,2]
[384599720,1757470238411,-300.0,0.00013396,2]
[384599722,1757470238420,-300.0,0.00013396,2]
[384599724,1757470238429,-300.0,0.00013396,2]
[384599726,1757470238438,-1200.0,0.00013396,2]
[384599728,1757470238448,-19606.32040489,0.00013397,2]
[384599730,1757470238457,-296.81124054,0.00013397,2]
[384599732,1757470238467,-341.0553089,0.00013397,2]
[384599752,1757470238616,-293.93342736,0.00013397,2]
[384599754,1757470238627,-500.0,0.00013397,2]
[384599756,1757470238636,-500.0,0.00013397,2]
[384599758,1757470238646,-500.0,0.00013397,2]
[384599760,1757470238656,-336.18799053,0.00013397,2]
[384599762,1757470238665,-500.0,0.00013397,2]
[384599764,1757470238674,-370000.0,0.00013398,2]
[384599766,1757470238684,-151.0,0.000134,2]
[384599768,1757470238694,-2328.50593744,0.00013443,2]
[384599770,1757470238703,-2328.50593744,0.00013586,2]
[384599772,1757470238712,-500.0,0.00013665,2]
[384599774,1757470238721,-300.0,0.00013665,2]
[384599776,1757470238730,-300.0,0.00013665,2]
[384599778,1757470238739,-300.0,0.00013665,2]
[384599780,1757470238748,-300.0,0.00013665,2]
[384599782,1757470238758,-300.0,0.00013665,2]
[384599784,1757470238768,-300.0,0.00013665,2]
[384599786,1757470238777,-300.0,0.00013665,2]
[384599788,1757470238787,-300.0,0.00013665,2]
[384599790,1757470238797,-300.0,0.00013665,2]
[384599792,1757470238806,-300.0,0.00013665,2]
[384599794,1757470238817,-300.0,0.00013665,2]
[384599796,1757470238826,-300.0,0.00013665,2]
[384599798,1757470238835,-300.0,0.00013665,2]
[384599800,1757470238844,-300.0,0.00013665,2]
[384599801,1757470238853,-300.0,0.00013665,2]
[384599802,1757470238863,-600.0,0.00013665,2]
[384599803,1757470238872,-500.0,0.00013673,2]
[384599804,1757470238882,-500.0,0.00013673,2]
[384599805,1757470238891,-500.0,0.00013673,2]
[384599806,1757470238900,-500.0,0.00013673,2]
[384599808,1757470238909,-500.0,0.00013673,2]
[384599810,1757470238919,-500.0,0.00013673,2]
[384599812,1757470238928,-500.0,0.00013673,2]
[384599814,1757470238938,-500.28262433,0.00013673,2]
[384599816,1757470238947,-500.44539239,0.00013673,2]
[384599818,1757470238956,-500.0,0.00013673,2]
[384599820,1757470238965,-501.190828,0.00013673,2]
[384599822,1757470238974,-500.69266252,0.00013673,2]
[384599824,1757470238983,-503.06568941,0.00013673,2]
[384599826,1757470238992,-500.0,0.00013673,2]
[384599827,1757470239001,-500.0,0.00013673,2]
[384599829,1757470239010,-500.0,0.00013673,2]
[384599831,1757470239019,-395.36715821,0.00013673,2]
[384599833,1757470239029,-500.0,0.00013673,2]
[384599835,1757470239039,-500.43316367,0.00013673,2]
[384599837,1757470239048,-500.94839175,0.00013673,2]
[384599838,1757470239057,-500.0,0.00013673,2]
[384599839,1757470239067,-500.0,0.00013673,2]
[384599840,1757470239076,-501.85826548,0.00013673,2]
[384599841,1757470239086,-639.03179198,0.00013673,2]
[384599842,1757470239095,-500.0,0.00013673,2]
[384599843,1757470239104,-500.92663441,0.00013673,2]
[384599844,1757470239113,-296.78720014,0.00013673,2]
[384599845,1757470239123,-500.0,0.00013673,2]
[384599846,1757470239132,-500.2014928,0.00013673,2]
[384599847,1757470239141,-504.54352819,0.00013673,2]
[384599848,1757470239150,-263.94520981,0.00013673,2]
[384599849,1757470239160,-500.46731704,0.00013673,2]
[384599850,1757470239169,-500.51033799,0.00013673,2]
[384599851,1757470239179,-501.77133674,0.00013673,2]
[384599852,1757470239188,-500.0,0.00013673,2]
[384599853,1757470239197,-500.0,0.00013673,2]
[384599854,1757470239206,-500.31404069,0.00013673,2]
[384599855,1757470239215,-482.30867304,0.00013673,2]
[384599856,1757470239224,-168.46552403,0.00013673,2]
[384599857,1757470239234,-500.0,0.00013673,2]
[384599858,1757470239243,-500.0,0.00013673,2]
[384599859,1757470239252,-156.44179697,0.00013673,2]
[384599860,1757470239261,-503.08097958,0.00013673,2]
[384599861,1757470239271,-500.38140165,0.00013673,2]
[384599862,1757470239279,-501.04069798,0.00013673,2]
[384599863,1757470239289,-216.081,0.00013697,2]
[384599864,1757470239299,-481.40701494,0.00013698,2]
[384599865,1757470239308,-480.0,0.00013698,2]
[384599866,1757470239319,-481.5663338,0.00013698,2]
[384599867,1757470239332,-480.0,0.00013698,2]
[384599868,1757470239342,-480.0,0.00013698,2]
[384599869,1757470239351,-480.0,0.00013698,2]
[384599870,1757470239360,-481.49212541,0.00013698,2]
[384599871,1757470239371,-480.0,0.00013698,2]
[384599872,1757470239380,-483.14379946,0.00013698,2]
[384599873,1757470239389,-346.48644283,0.00013698,2]
[384599874,1757470239401,-480.0,0.00013698,2]
[384599875,1757470239410,-480.0,0.00013698,2]
[384599876,1757470239420,-483.51871798,0.00013698,2]
[384599877,1757470239429,-482.08986602,0.00013698,2]
[384599878,1757470239438,-322.97346732,0.00013698,2]
[384599879,1757470239448,-480.0,0.00013698,2]
[384599880,1757470239457,-480.0,0.00013698,2]
[384599881,1757470239467,-376.56155984,0.00013698,2]
[384599882,1757470239477,-480.0,0.00013698,2]
[384599883,1757470239486,-481.92197855,0.00013698,2]
[384599884,1757470239496,-482.78875913,0.00013698,2]
[384599885,1757470239505,-480.0,0.00013698,2]
[384599886,1757470239514,-480.0,0.00013698,2]
[384599887,1757470239524,-480.0,0.00013698,2]
[384599888,1757470239535,-599.78160699,0.00013698,2]
[384599889,1757470239545,-590.17648891,0.00013698,2]
[384599890,1757470239554,-480.0,0.00013698,2]
[384599891,1757470239564,-480.0,0.00013698,2]
[384599892,1757470239573,-480.0,0.00013698,2]
[384599893,1757470239583,-436.52146158,0.00013698,2]
[384599894,1757470239594,-480.0,0.00013698,2]
[384599895,1757470239604,-480.0,0.00013698,2]
[384599896,1757470239614,-480.0,0.00013698,2]
[384599897,1757470239623,-480.0,0.00013698,2]
[384599898,1757470239632,-480.0,0.00013698,2]
[384599899,1757470239641,-480.0,0.00013698,2]
[384599900,1757470239650,-480.0,0.00013698,2]
[384599901,1757470239660,-480.0,0.00013698,2]
[384599902,1757470239670,-480.0,0.00013698,2]
[384599904,1757470239679,-480.0,0.00013698,2]
[384599905,1757470239689,-604.17745097,0.00013698,2]
[384599906,1757470239698,-484.98024436,0.00013698,2]
[384599908,1757470239707,-480.0,0.00013698,2]
[384599909,1757470239716,-480.0,0.00013698,2]
[384599911,1757470239726,-480.0,0.00013698,2]
[384599912,1757470239735,-480.0,0.00013698,2]
[384599913,1757470239744,-480.0,0.00013698,2]
[384599914,1757470239753,-480.0,0.00013698,2]
[384599916,1757470239762,-534.88915757,0.00013698,2]
[384599918,1757470239771,-480.0,0.00013698,2]
[384599920,1757470239780,-480.0,0.00013698,2]
[384599922,1757470239789,-480.0,0.00013698,2]
[384599924,1757470239798,-495.49930468,0.00013698,2]
[384599926,1757470239807,-607.72435667,0.00013698,2]
[384599928,1757470239817,-480.0,0.00013698,2]
[384599930,1757470239826,-480.0,0.00013698,2]
[384599932,1757470239835,-480.0,0.00013698,2]
[384599934,1757470239844,-410.88837955,0.00013698,2]
[384599936,1757470239853,-480.0,0.00013698,2]
[384599939,1757470239861,-480.0,0.00013698,2]
[384599941,1757470239870,-382.86699867,0.00013698,2]
[384599944,1757470239879,-181.51569195,0.00013698,2]
[384599947,1757470239888,-480.0,0.00013698,2]
[384599950,1757470239897,-480.0,0.00013698,2]
[384599951,1757470239907,-482.60993904,0.00013698,2]
[384599953,1757470239916,-480.0,0.00013698,2]
[384599955,1757470239924,-480.0,0.00013698,2]
[384599957,1757470239933,-486.6657806,0.00013698,2]
[384599959,1757470239942,-480.0,0.00013698,2]
[384599961,1757470239951,-480.0,0.00013698,2]
[384599963,1757470239960,-491.56827888,0.00013698,2]
[384599965,1757470239972,-485.93698758,0.00013698,2]
[384599967,1757470239982,-480.0,0.00013698,2]
[384599969,1757470239990,-480.0,0.00013698,2]
[384599971,1757470240000,-480.0,0.00013698,2]
[384599973,1757470240009,-480.0,0.00013698,2]
[384599975,1757470240018,-480.0,0.00013698,2]
[384599977,1757470240028,-480.0,0.00013698,2]
[384599980,1757470240038,-480.0,0.00013698,2]
[384599982,1757470240047,-480.0,0.00013698,2]
[384599983,1757470240056,-480.0,0.00013698,2]
[384599986,1757470240067,-480.0,0.00013698,2]
[384599987,1757470240075,-480.0,0.00013698,2]
[384599989,1757470240085,-480.0,0.00013698,2]
[384599992,1757470240095,-167.28264663,0.00013698,2]
[384599994,1757470240104,-480.0,0.00013698,2]
[384599995,1757470240114,-480.0,0.00013698,2]
[384599997,1757470240123,-480.0,0.00013698,2]
[384599999,1757470240132,-480.0,0.00013698,2]
[384600002,1757470240142,-480.0,0.00013698,2]
[384600004,1757470240151,-480.0,0.00013698,2]
[384600006,1757470240160,-480.0,0.00013698,2]
[384600008,1757470240170,-480.0,0.00013698,2]
[384600010,1757470240182,-480.0,0.00013698,2]
[384600012,1757470240193,-480.0,0.00013698,2]
[384600014,1757470240202,-480.0,0.00013698,2]
[384600016,1757470240211,-480.0,0.00013698,2]
[384600018,1757470240220,-480.0,0.00013698,2]
[384600020,1757470240229,-480.0,0.00013698,2]
[384600022,1757470240239,-484.15360271,0.00013698,2]
[384600024,1757470240248,-480.0,0.00013698,2]
[384600026,1757470240258,-206.76830095,0.00013698,2]
[384600028,1757470240268,-480.0,0.00013698,2]
[384600030,1757470240277,-480.0,0.00013698,2]
[384600032,1757470240287,-480.0,0.00013698,2]
[384600034,1757470240296,-480.0,0.00013698,2]
[384600036,1757470240306,-483.06486785,0.00013698,2]
[384600038,1757470240316,-480.0,0.00013698,2]
[384600040,1757470240328,-480.0,0.00013698,2]
[384600042,1757470240338,-480.0,0.00013698,2]
[384600044,1757470240348,-480.0,0.00013698,2]
[384600046,1757470240357,-480.0,0.00013698,2]
[384600048,1757470240368,-480.0,0.00013698,2]
[384600050,1757470240377,-480.0,0.00013698,2]
[384600052,1757470240387,-480.0,0.00013698,2]
[384600054,1757470240398,-480.0,0.00013698,2]
[384600055,1757470240407,-3112.18,0.00013698,2]
[384600056,1757470240418,-480.0,0.00013698,2]
[384600057,1757470240427,-491.20062485,0.00013698,2]
[384600058,1757470240437,-480.0,0.00013698,2]
[384600059,1757470240446,-521.1332343,0.00013698,2]
[384600060,1757470240456,-480.0,0.00013698,2]
[384600061,1757470240466,-480.0,0.00013698,2]
[384600062,1757470240475,-480.0,0.00013698,2]
[384600063,1757470240485,-577.36515164,0.00013698,2]
[384600065,1757470240495,-480.0,0.00013698,2]
[384600067,1757470240504,-485.3980371,0.00013698,2]
[384600069,1757470240513,-546.95731699,0.00013698,2]
[384600071,1757470240523,-480.0,0.00013698,2]
[384600073,1757470240532,-480.0,0.00013698,2]
[384600075,1757470240541,-480.0,0.00013698,2]
[384600077,1757470240550,-480.0,0.00013698,2]
[384600079,1757470240559,-480.0,0.00013698,2]
[384600081,1757470240568,-480.0,0.00013698,2]
[384600083,1757470240577,-480.0,0.00013698,2]
[384600085,1757470240587,-480.0,0.00013698,2]
[384600087,1757470240596,-480.0,0.00013698,2]
[384600089,1757470240605,-480.0,0.00013698,2]
[384600091,1757470240615,-267.89490344,0.00013698,2]
[384600093,1757470240624,-480.0,0.00013698,2]
[384600095,1757470240633,-485.10053294,0.00013698,2]
[384600097,1757470240642,-480.0,0.00013698,2]
[384600099,1757470240652,-480.0,0.00013698,2]
[384600101,1757470240661,-480.0,0.00013698,2]
[384600103,1757470240670,-481.99846383,0.00013698,2]
[384600105,1757470240680,-480.0,0.00013698,2]
[384600107,1757470240688,-480.0,0.00013698,2]
[384600109,1757470240698,-480.0,0.00013698,2]
[384600111,1757470240708,-483.18488262,0.00013698,2]
[384600113,1757470240717,-483.33600419,0.00013698,2]
[384600115,1757470240727,-480.0,0.00013698,2]
[384600117,1757470240736,-480.0,0.00013698,2]
[384600119,1757470240746,-480.0,0.00013698,2]
[384600121,1757470240755,-480.0,0.00013698,2]
[384600123,1757470240764,-480.96819034,0.00013698,2]
[384600125,1757470240773,-480.0,0.00013698,2]
[384600127,1757470240782,-480.0,0.00013698,2]
[384600129,1757470240792,-556.87808462,0.00013698,2]
[384600131,1757470240801,-480.0,0.00013698,2]
[384600133,1757470240811,-480.0,0.00013698,2]
[384600135,1757470240821,-480.0,0.00013698,2]
[384600137,1757470240830,-480.0,0.00013698,2]
[384600139,1757470240839,-480.0,0.00013698,2]
[384600141,1757470240849,-480.0,0.00013698,2]
[384600143,1757470240858,-480.0,0.00013698,2]
[384600145,1757470240868,-480.0,0.00013698,2]
[384600147,1757470240877,-480.0,0.00013698,2]
[384600149,1757470240886,-482.17578056,0.00013698,2]
[384600151,1757470240896,-480.0,0.00013698,2]
[384600153,1757470240905,-480.0,0.00013698,2]
[384600156,1757470240915,-241.21588419,0.00013698,2]
[384600158,1757470240924,-480.0,0.00013698,2]
[384600159,1757470240933,-480.0,0.00013698,2]
[384600162,1757470240943,-480.0,0.00013698,2]
[384600163,1757470240953,-481.15068463,0.00013698,2]
[384600165,1757470240962,-691.32,0.00013698,2]
[384600167,1757470240972,-482.35174034,0.00013698,2]
[384600169,1757470240981,-480.0,0.00013698,2]
[384600171,1757470240991,-480.0,0.00013698,2]
[384600173,1757470241000,-488.58205029,0.00013698,2]
[384600175,1757470241010,-480.0,0.00013698,2]
[384600177,1757470241020,-480.0,0.00013698,2]
[384600179,1757470241029,-480.0,0.00013698,2]
[384600181,1757470241039,-480.0,0.00013698,2]
[384600183,1757470241048,-480.0,0.00013698,2]
[384600185,1757470241057,-480.0,0.00013698,2]
[384600187,1757470241067,-480.0,0.00013698,2]
[384600189,1757470241077,-480.0,0.00013698,2]
[384600191,1757470241086,-480.0,0.00013698,2]
[384600193,1757470241095,-480.0,0.00013698,2]
[384600195,1757470241104,-480.0,0.00013698,2]
[384600197,1757470241113,-480.0,0.00013698,2]
[384600199,1757470241122,-480.0,0.00013698,2]
[384600201,1757470241132,-480.0,0.00013698,2]
[384600203,1757470241141,-480.0,0.00013698,2]
[384600205,1757470241150,-480.0,0.00013698,2]
[384600206,1757470241161,-1003.48057151,0.00013698,2]
[384600209,1757470241171,-480.0,0.00013698,2]
[384600211,1757470241180,-480.0,0.00013698,2]